{"text_format":"1","workbook":"xlsx","n_sheets":2,"sheets":["Respuestas de formulario 1","Datos"],"not_rendered":{"charts":0,"images":0,"macros":1,"external_links":0,"defined_names":7,"comments":0,"pivot_tables":0},"unopened":[],"bounds":{"document_bytes":16777216,"sheet_cells":100000,"rows_first":2000,"rows_last":500,"rows_between":2000,"halvings":0,"cell_chars":16384,"cell_head_chars":4096},"cells_cut":0,"cells_raw":0,"read":"whole","date_system":"1900"}

{"sheet":"Respuestas de formulario 1","index":0,"n_rows":203,"n_cols":49,"rows_kept":203,"cut":false,"hidden":false,"merged":[]}
["Identificacion (C.C., ID)","Ingrese los datos de la Consignación, o Pago","Prueba en la que se Inscribe ","Nombre Completo","Sexo","Fecha de Nacimiento","Tipo de Sangre","Talla Camiseta (solo S, M, L, XL)","Correo Electrónico","Celular o Telefono","Dirección","Ciudad","País","Aerolinea del vuelo de ciudad de Origen del viaje ","Ciudad de Origen, Código de Reserva, No. del vuelo a la isla de San Andrés","No. de Tiquete del vuelo de ida a San Andrés ","Fecha de Vuelo desde Ciudad de Origen a San Andres","Fecha de Vuelo de regreso de San Andrés a la Ciudad de Origen","Autorizacón Lista Inscritos","Club","Observacions","Exoneración de Responsabilidades","Datos contacto emergencia","Fecha Actual","Edad","Categoria",null,"DORSAL",null,null,null,null,null,null,null,null,null,null,null,null,null,null,null,null,null,null,null,null,"Vuelta a la Isla 32,5K"]
[3456,"Daviplata 272719","Vuelta a la Isla 32,5K","Pepito Perez","Masculino","21/09/1963","O+","L","abc@gmail.com",5555555444444,"calle 3 # 3-3","Cali","Colombia","Avianca","Cali","sdfasdfadsf","Aun no lo tengo , lo enviare antes del 30 de junio",null,"SI AUTORIZO","Trotadores Activos",null,"SI ACEPTO","Joe Hurtado Plata 3130033000",null,null,null,null,null,null,null,null,null,null,null,null,null,null,null,null,null,null,null,null,null,null,null,null,null,"21K (Categoría Única)"]
[null,null,null,null,null,null,null,null,null,null,null,null,null,null,null,null,null,null,null,null,null,null,null,null,null,null,null,null,null,null,null,null,null,null,null,null,null,null,null,null,null,null,null,null,null,null,null,null,"10K (Categoría Única)"]
[null,null,null,null,null,null,null,null,null,null,null,null,null,null,null,null,null,null,null,null,null,null,null,"2020-04-26",{"$f":"INT((X4-F4)/365.24)","v":120},{"$f":"IF(C4=\"Vuelta a la Isla 32,5K\",(IF(E4=\"Masculino\",(IF(Y4<40,\"Mayores\",(IF(Y4<50,\"Master A\",(IF(Y4<60,\"Master B\",(IF(Y4>=60,\"Master C\",\"\")))))))),(IF(Y4<40,\"Abierta\",(IF(Y4<50,\"Plus\",(IF(Y4>=50,\"Master\",\"\")))))))),\"Única\")","v":"Única"},null,null,null,null,null,null,null,null,null,null,null,null,null,null,null,null,null,null,null,null,null,null,"5K (Categoría Única)"]
[null,null,null,null,null,null,null,null,null,null,null,null,null,null,null,null,null,null,null,null,null,null,null,"2020-04-26",{"$f":"INT((X5-F5)/365.24)","v":120},"Única"]
[null,null,null,null,null,null,null,null,null,null,null,null,null,null,null,null,null,null,null,null,null,null,null,"2020-04-26",120,"Única"]
[null,null,null,null,null,null,null,null,null,null,null,null,null,null,null,null,null,null,null,null,null,null,null,"2020-04-26",120,"Única"]
[null,null,null,null,null,null,null,null,null,null,null,null,null,null,null,null,null,null,null,null,null,null,null,"2020-04-26",{"$f":"INT((X8-F8)/365.24)","v":120},"Única"]
[null,null,null,null,null,null,null,null,null,null,null,null,null,null,null,null,null,null,null,null,null,null,null,"2020-04-26",120,"Única"]
[null,null,null,null,null,null,null,null,null,null,null,null,null,null,null,null,null,null,null,null,null,null,null,"2020-04-26",120,"Única"]
[null,null,null,null,null,null,null,null,null,null,null,null,null,null,null,null,null,null,null,null,null,null,null,"2020-04-26",120,"Única"]
[null,null,null,null,null,null,null,null,null,null,null,null,null,null,null,null,null,null,null,null,null,null,null,"2020-04-26",120,"Única"]
[null,null,null,null,null,null,null,null,null,null,null,null,null,null,null,null,null,null,null,null,null,null,null,"2020-04-26",120,"Única"]
[null,null,null,null,null,null,null,null,null,null,null,null,null,null,null,null,null,null,null,null,null,null,null,"2020-04-26",120,"Única"]
[null,null,null,null,null,null,null,null,null,null,null,null,null,null,null,null,null,null,null,null,null,null,null,"2020-04-26",120,"Única"]
[null,null,null,null,null,null,null,null,null,null,null,null,null,null,null,null,null,null,null,null,null,null,null,"2020-04-26",120,"Única"]
[null,null,"Vuelta a la Isla 32,5K",null,null,null,null,null,null,null,null,null,null,null,null,null,null,null,null,null,null,null,null,"2020-04-26",120,"Master"]
[null,null,"21K (Categoría Única)",null,null,null,null,null,null,null,null,null,null,null,null,null,null,null,null,null,null,null,null,"2020-04-26",120,"Única"]
[null,null,"10K (Categoría Única)",null,null,null,null,null,null,null,null,null,null,null,null,null,null,null,null,null,null,null,null,"2020-04-26",120,"Única"]
[null,null,"5K (Categoría Única)",null,null,null,null,null,null,null,null,null,null,null,null,null,null,null,null,null,null,null,null,"2020-04-26",120,"Única"]
[null,null,null,null,null,null,null,null,null,null,null,null,null,null,null,null,null,null,null,null,null,null,null,"2020-04-26",120,"Única"]
[null,null,null,null,null,null,null,null,null,null,null,null,null,null,null,null,null,null,null,null,null,null,null,"2020-04-26",120,"Única"]
[null,null,null,null,null,null,null,null,null,null,null,null,null,null,null,null,null,null,null,null,null,null,null,"2020-04-26",120,"Única"]
[null,null,null,null,null,null,null,null,null,null,null,null,null,null,null,null,null,null,null,null,null,null,null,"2020-04-26",120,"Única"]
[null,null,null,null,null,null,null,null,null,null,null,null,null,null,null,null,null,null,null,null,null,null,null,"2020-04-26",120,"Única"]
[null,null,null,null,null,null,null,null,null,null,null,null,null,null,null,null,null,null,null,null,null,null,null,"2020-04-26",120,"Única"]
[null,null,null,null,null,null,null,null,null,null,null,null,null,null,null,null,null,null,null,null,null,null,null,"2020-04-26",120,"Única"]
[null,null,null,null,null,null,null,null,null,null,null,null,null,null,null,null,null,null,null,null,null,null,null,"2020-04-26",120,"Única"]
[null,null,null,null,null,null,null,null,null,null,null,null,null,null,null,null,null,null,null,null,null,null,null,"2020-04-26",120,"Única"]
[null,null,null,null,null,null,null,null,null,null,null,null,null,null,null,null,null,null,null,null,null,null,null,"2020-04-26",120,"Única"]
[null,null,null,null,null,null,null,null,null,null,null,null,null,null,null,null,null,null,null,null,null,null,null,"2020-04-26",120,"Única"]
[null,null,null,null,null,null,null,null,null,null,null,null,null,null,null,null,null,null,null,null,null,null,null,"2020-04-26",120,"Única"]
[null,null,null,null,null,null,null,null,null,null,null,null,null,null,null,null,null,null,null,null,null,null,null,"2020-04-26",120,"Única"]
[null,null,null,null,null,null,null,null,null,null,null,null,null,null,null,null,null,null,null,null,null,null,null,"2020-04-26",120,"Única"]
[null,null,null,null,null,null,null,null,null,null,null,null,null,null,null,null,null,null,null,null,null,null,null,"2020-04-26",120,"Única"]
[null,null,null,null,null,null,null,null,null,null,null,null,null,null,null,null,null,null,null,null,null,null,null,"2020-04-26",120,"Única"]
[null,null,null,null,null,null,null,null,null,null,null,null,null,null,null,null,null,null,null,null,null,null,null,"2020-04-26",120,"Única"]
[null,null,null,null,null,null,null,null,null,null,null,null,null,null,null,null,null,null,null,null,null,null,null,"2020-04-26",120,"Única"]
[null,null,null,null,null,null,null,null,null,null,null,null,null,null,null,null,null,null,null,null,null,null,null,"2020-04-26",120,"Única"]
[null,null,null,null,null,null,null,null,null,null,null,null,null,null,null,null,null,null,null,null,null,null,null,"2020-04-26",120,"Única"]
[null,null,null,null,null,null,null,null,null,null,null,null,null,null,null,null,null,null,null,null,null,null,null,"2020-04-26",120,"Única"]
[null,null,null,null,null,null,null,null,null,null,null,null,null,null,null,null,null,null,null,null,null,null,null,"2020-04-26",120,"Única"]
[null,null,null,null,null,null,null,null,null,null,null,null,null,null,null,null,null,null,null,null,null,null,null,"2020-04-26",120,"Única"]
[null,null,null,null,null,null,null,null,null,null,null,null,null,null,null,null,null,null,null,null,null,null,null,"2020-04-26",120,"Única"]
[null,null,null,null,null,null,null,null,null,null,null,null,null,null,null,null,null,null,null,null,null,null,null,"2020-04-26",120,"Única"]
[null,null,null,null,null,null,null,null,null,null,null,null,null,null,null,null,null,null,null,null,null,null,null,"2020-04-26",120,"Única"]
[null,null,null,null,null,null,null,null,null,null,null,null,null,null,null,null,null,null,null,null,null,null,null,"2020-04-26"]
[]
[]
[]
[]
[]
[]
[]
[]
[]
[]
[]
[]
[]
[]
[]
[]
[]
[]
[]
[]
[]
[]
[]
[]
[]
[]
[]
[]
[]
[]
[]
[]
[]
[]
[]
[]
[]
[]
[]
[]
[]
[]
[]
[]
[]
[]
[]
[]
[]
[]
[]
[]
[]
[]
[]
[]
[]
[]
[]
[]
[]
[]
[]
[]
[]
[]
[]
[]
[]
[]
[]
[]
[]
[]
[]
[]
[]
[]
[]
[]
[]
[]
[]
[]
[]
[]
[]
[]
[]
[]
[]
[]
[]
[]
[]
[]
[]
[]
[]
[]
[]
[]
[]
[]
[]
[]
[]
[]
[]
[]
[]
[]
[]
[]
[]
[]
[]
[]
[]
[]
[]
[]
[]
[]
[]
[]
[]
[]
[]
[]
[]
[]
[]
[]
[]
[]
[]
[]
[]
[]
[]
[]
[]
[]
[]
[]
[]
[]
[]
[]
[]
[]
[null,null,null,null,null,null,null,null,null,null,null,null,null,null,null,null,null,null,null,null,null,null,null,null,null,null,null,null,null,null,null,null,null,null,null,null,null,null,null,null,null,null,null,null,null,null,null,null,"Vuelta a la Isla 32,5K"]
[null,null,null,null,null,null,null,null,null,null,null,null,null,null,null,null,null,null,null,null,null,null,null,null,null,null,null,null,null,null,null,null,null,null,null,null,null,null,null,null,null,null,null,null,null,null,null,null,"21K (Categoría Única)"]
[null,null,null,null,null,null,null,null,null,null,null,null,null,null,null,null,null,null,null,null,null,null,null,null,null,null,null,null,null,null,null,null,null,null,null,null,null,null,null,null,null,null,null,null,null,null,null,null,"10K (Categoría Única)"]
[null,null,null,null,null,null,null,null,null,null,null,null,null,null,null,null,null,null,null,null,null,null,null,null,null,null,null,null,null,null,null,null,null,null,null,null,null,null,null,null,null,null,null,null,null,null,null,null,"5K (Categoría Única)"]

{"sheet":"Datos","index":1,"n_rows":9,"n_cols":7,"rows_kept":9,"cut":false,"hidden":false,"merged":[]}
["Vuelta a la Isla 32,5K","GENERO","SANGRE","TALLA","SI AUTORIZO","SI ACEPTO","AEROLINEA"]
["21K (Categoría Única)","Masculino","A+","S","SI AUTORIZO","SI ACEPTO","Avianca"]
["10K (Categoría Única)","Femenino","A-","M","NO AUTORIZO",null,"Latam"]
["5K (Categoría Única)",null,"B+","L",null,null,"Wingo"]
[null,null,"B-","XL",null,null,"VivaAir"]
[null,null,"AB+",null,null,null,"Otra"]
[null,null,"AB-"]
[null,null,"O+"]
[null,null,"O-"]